fUSD/lending_fUSD_20240408
["ID","MTS","AMOUNT","RATE_DAILY","PERIOD"]
[321896804,1712591441323,-74.48526967,0.00026689,2]
[321896806,1712591441336,-818.24203477,0.00026689,2]
[321896811,1712591441368,-289.32230204,0.00026689,2]
[321896814,1712591441392,-90.72942646,0.00026689,2]
[321896817,1712591441405,-150.0,0.00026692,2]
[321896819,1712591441416,-150.0,0.00026694,2]
[321896820,1712591441426,-150.0,0.00026695,2]
[321896821,1712591441438,-1237.5719,0.00026699,2]
[321896822,1712591441448,-150.0,0.00026699,4]
[321896823,1712591441458,-500.0,0.000267,2]
[321896824,1712591441469,-933.69867354,0.000267,2]
[321896825,1712591441482,-854.9999999,0.000267,2]
[321896829,1712591441507,-8532.5,0.000267,2]
[321896831,1712591441521,-597.83685158,0.000267,2]
[321896836,1712591441559,-259.41654144,0.000267,2]
[321896838,1712591441573,-326.02721356,0.000267,2]
[321896950,1712591443530,-150.0,0.00025176,2]
[321896951,1712591443540,-150.0,0.00025422,2]
[321896952,1712591443551,-150.0,0.00025489,2]
[321896953,1712591443561,-150.0,0.00025753,2]
[321896954,1712591443571,-150.0,0.00026037,2]
[321896955,1712591443581,-150.0,0.00026281,2]
[321896956,1712591443592,-381.77059482,0.00026698,2]
[321896957,1712591443602,-7174.83929311,0.000267,2]
[321896958,1712591443614,-2274.07035841,0.000267,2]
[321896959,1712591443632,-2647.75290783,0.000267,2]
[321896960,1712591443643,-6940.76437508,0.000267,2]
[321896961,1712591443655,-3058.20300483,0.000267,2]
[321896962,1712591443674,-1820.34524759,0.000267,2]
[321896963,1712591443686,-936.35,0.000267,2]
[321896964,1712591443711,-3588.07593313,0.000267,2]
[321896965,1712591443720,-150.0,0.00026701,2]
[321896966,1712591443730,-150.0,0.00026708,2]
[321896967,1712591443739,-150.0,0.00026712,4]
[321896968,1712591443749,-150.0,0.00026712,4]
[321896969,1712591443759,-150.0,0.00026721,2]
[321896970,1712591443768,-150.0,0.00026721,2]
[321896971,1712591443777,-296.92163089,0.00026728,4]
[321896972,1712591443787,-150.0,0.00026729,4]
[321896973,1712591443796,-150.0,0.0002675,4]
[321896974,1712591443806,-150.0,0.0002675,2]
[321896975,1712591443816,-150.0,0.00026766,2]
[321896976,1712591443826,-150.0,0.00026786,2]
[321896977,1712591443835,-150.0,0.00026787,4]
[321896978,1712591443845,-150.0,0.00026789,4]
[321896979,1712591443854,-150.0,0.00026792,2]
[321896980,1712591443863,-4253.80537518,0.00026797,2]
[321896983,1712591443981,-275.5634007,0.00026797,2]
[321896984,1712591443993,-470.63122212,0.00026797,2]
[321896985,1712591444004,-177.91304322,0.00026798,2]
[321896986,1712591444014,-182.94210018,0.00026798,2]
[321896987,1712591444023,-205.23806172,0.00026798,2]
[321896988,1712591444033,-155.77109055,0.00026798,2]
[321896989,1712591444042,-155.0,0.00026798,2]
[321896990,1712591444052,-155.68969577,0.00026798,2]
[321896991,1712591444061,-472.63292585,0.00026798,2]
[321896992,1712591444071,-681.90393791,0.00026798,2]
[321896995,1712591444081,-155.0,0.00026798,2]
[321896997,1712591444090,-155.62920748,0.00026799,2]
[321896999,1712591444099,-155.92538713,0.00026799,2]
[321897001,1712591444110,-2040.76368569,0.00026799,2]
[321897003,1712591444121,-2150.68506891,0.00026799,2]
[321897005,1712591444132,-5807.92029741,0.00026799,2]
[321897009,1712591444159,-550.0,0.00026497,2]
[321897011,1712591444169,-2560.40873306,0.00026799,2]
[321897013,1712591444178,-4763.14379677,0.000268,2]
[321897164,1712591446412,-180.12207567,0.00023472,2]
[321897165,1712591446422,-150.0,0.00025434,2]
[321897166,1712591446434,-112.43534848,0.0002614,2]
[321897167,1712591446726,-150.0,0.00025125,2]
[321897168,1712591446736,-37.56465152,0.0002614,2]
[321897169,1712591446745,-150.0,0.00026224,2]
[321897170,1712591446755,-150.0,0.00026629,2]
[321897171,1712591446764,-311.77525952,0.00026798,2]
[321897172,1712591446773,-779.02839418,0.000268,2]
[321897173,1712591446804,-734.82073452,0.000268,2]
[321897211,1712591482677,494.54,0.00024958,15]
[321897215,1712591621370,-2763.3,0.000299,30]
[321897229,1712591801061,-404.73102028,0.00022489,2]
[321897230,1712591801083,-1290.89052335,0.0002249,2]
[321897231,1712591801104,-620.43039615,0.00022491,2]
[321897232,1712591801124,-155.0,0.00022491,2]
[321897233,1712591801144,-1296.33667789,0.00022497,2]
[321897234,1712591801163,-7314.34728416,0.000225,2]
[321897252,1712592040878,1209.58927581,0.00023372,20]
[321897253,1712592052834,463.63,0.0002476,15]
[321897254,1712592056693,500.00004492,0.0003,30]
[321897255,1712592116969,1190.0,0.0003,30]
[321897341,1712592559296,434.65,0.00024736,15]
[321897363,1712592631911,-550.0,0.00021,3]
[321897364,1712592631921,-150.0,0.00022498,2]
[321897365,1712592631930,-184.717209,0.00022499,2]
[321897366,1712592631943,-2748.05358637,0.00022499,2]
[321897367,1712592631986,-311.67018103,0.00022499,2]
[321897368,1712592631997,-2253.71037969,0.00022499,2]
[321897369,1712592632009,-652.53259514,0.00022499,2]
[321897370,1712592632019,-4648.04280466,0.00022499,2]
[321897371,1712592632099,-1502.64114657,0.00022499,2]
[321897372,1712592632109,-307.81,0.00022853,2]
[321897373,1712592632118,-600.0,0.00023,3]
[321897374,1712592632128,-246.22571989,0.00024413,2]
[321897375,1712592632139,-210.0,0.0002444,2]
[321897376,1712592632148,-3300.0,0.0002447,2]
[321897377,1712592632158,-500.0,0.0002447,2]
[321897378,1712592632168,-500.0,0.0002447,2]
[321897379,1712592632177,-1300.0,0.0002447,2]
[321897380,1712592632187,-700.0,0.0002447,2]
[321897381,1712592632196,-676.44102002,0.00024507,2]
[321897382,1712592632206,-239.86,0.00024507,2]
[321897383,1712592632215,-676.44102002,0.00024528,2]
[321897384,1712592632224,-296.23,0.00024528,2]
[321897385,1712592632234,-150.99,0.00024528,2]
[321897386,1712592632243,-676.44102002,0.00024534,2]
[321897387,1712592632253,-150.99,0.00024534,2]
[321897388,1712592632263,-676.44102002,0.00024535,2]
[321897389,1712592632274,-676.44102002,0.0002456,2]
[321897390,1712592632283,-676.44102002,0.0002456,2]
[321897391,1712592632292,-676.44102002,0.00024573,2]
[321897392,1712592632302,-676.44102002,0.00024595,2]
[321897393,1712592632312,-676.44102002,0.00024599,2]
[321897394,1712592632321,-500.0,0.00024679,2]
[321897395,1712592632331,-150.0,0.00024705,2]
[321897396,1712592632341,-500.0,0.00024715,2]
[321897397,1712592632352,-838.62,0.0002472,2]
[321897398,1712592632361,-1035.09,0.00024721,2]
[321897399,1712592632370,-1124.34,0.00024724,2]
[321897400,1712592632379,-997.52,0.00024735,2]
[321897402,1712592632388,-2208.16129134,0.00024736,2]
[321897404,1712592632398,-364.99752473,0.00024736,2]
[321897405,1712592632407,-267.58069064,0.00024736,2]
[321897406,1712592632416,-250.0,0.00024743,2]
[321897407,1712592632426,-1000.0,0.00024754,2]
[321897408,1712592632435,-4959.87,0.00024755,2]
[321897409,1712592632444,-250.0,0.00024757,2]
[321897410,1712592632453,-2708.14,0.00024757,2]
[321897411,1712592632462,-200.0,0.00024757,2]
[321897412,1712592632471,-137.74052767,0.00024767,2]
[321897413,1712592632606,-663.28899686,0.00024767,2]
[321897451,1712592638606,-718.45,0.00024639,2]
[321897452,1712592638618,-1048.65,0.00024639,2]
[321897453,1712592638627,-1182.90047547,0.00024767,2]
[321897454,1712592638637,-294.89506986,0.000248,2]
[321897455,1712592638646,-200.0,0.00024838,2]
[321897456,1712592638656,-163.78,0.00024917,2]
[321897457,1712592638666,-2763.0,0.00025,2]
[321897458,1712592638675,-650.0,0.00025,3]
[321897459,1712592638685,-2602.89125943,0.00025017,2]
[321897460,1712592638694,-3300.0,0.00025018,2]
[321897461,1712592638703,-500.0,0.00025018,2]
[321897462,1712592638712,-1300.0,0.00025018,2]
[321897463,1712592638725,-700.0,0.00025018,2]
[321897464,1712592638736,-163.78,0.00025079,2]
[321897465,1712592638746,-307.81,0.00025117,2]
[321897466,1712592638757,-210.0,0.0002521,2]
[321897467,1712592638767,-163.78,0.00025241,2]
[321897468,1712592638776,-163.78,0.00025403,2]
[321897469,1712592638786,-3157.37112809,0.00025458,2]
[321897470,1712592638795,-166.7,0.000255,2]
[321897471,1712592638805,-163.78,0.00025566,2]
[321897472,1712592638815,-500.0,0.00025566,2]
[321897473,1712592638825,-8467.0,0.000256,5]
[321897474,1712592638835,-152.0,0.00025605,3]
[321897475,1712592638845,-150.0,0.00025619,4]
[321897476,1712592638858,-150.0,0.00025619,4]
[321897477,1712592638867,-150.0,0.00025619,4]
[321897478,1712592638877,-151.30739144,0.00025619,4]
[321897479,1712592638887,-150.0,0.00025619,4]
[321897480,1712592638896,-151.14064855,0.00025619,4]
[321897481,1712592638907,-150.0,0.00025619,4]
[321897482,1712592638918,-150.0,0.00025619,4]
[321897483,1712592638927,-150.0,0.00025674,4]
[321897484,1712592638936,-192.9830808,0.00025698,2]
[321897485,1712592638947,-158.00138545,0.00025698,2]
[321897486,1712592638956,-550.71909542,0.00025698,2]
[321897487,1712592638966,-331.2047045,0.00025699,2]
[321897488,1712592638976,-2460.61735309,0.000257,2]
[321897489,1712592639131,-2521.895336,0.000257,2]
[321897496,1712592639552,-1247.6357,0.000257,2]
[321897497,1712592639731,-1968.30464509,0.000257,2]
[321897498,1712592639746,-273.27893816,0.000257,2]
[321897534,1712592643144,-11966.55853414,0.000257,2]
[321897537,1712592643209,-10816.50229352,0.000257,2]
[321897538,1712592643219,-1000.0,0.000257,2]
[321897539,1712592643228,-163.78,0.00025728,2]
[321897541,1712592643239,-150.0,0.00025729,4]
[321897542,1712592643248,-150.0,0.00025755,4]
[321897544,1712592643258,-150.0,0.00025783,4]
[321897546,1712592643267,-150.0,0.00025797,4]
[321897548,1712592643276,-150.0,0.00025838,4]
[321897550,1712592643285,-150.0,0.0002589,4]
[321897552,1712592643295,-163.78,0.0002589,2]
[321897553,1712592643304,-150.0,0.00025893,4]
[321897555,1712592643313,-150.0,0.00025935,4]
[321897557,1712592643323,-150.0,0.00025948,4]
[321897558,1712592643333,-150.0,0.00025975,4]
[321897559,1712592643342,-210.0,0.0002599,2]
[321897560,1712592643351,-1000.0,0.00026,2]
[321897561,1712592643361,-150.0,0.00026002,4]
[321897562,1712592643370,-150.0,0.00026026,4]
[321897563,1712592643380,-422.39140632,0.00026027,2]
[321897564,1712592643558,-116.60859368,0.00026027,2]
[321897565,1712592643568,-163.78,0.00026053,2]
[321897566,1712592643577,-150.0,0.00026057,4]
[321897567,1712592643587,-150.0,0.00026112,4]
[321897568,1712592643597,-3300.0,0.00026114,2]
[321897569,1712592643608,-500.0,0.00026114,2]
[321897570,1712592643617,-1300.0,0.00026114,2]
[321897571,1712592643627,-700.0,0.00026114,2]
[321897572,1712592643637,-150.0,0.00026153,4]
[321897573,1712592643646,-150.0,0.00026161,4]
[321897574,1712592643656,-150.0,0.00026167,4]
[321897575,1712592643666,-150.0,0.00026188,4]
[321897576,1712592643676,-1000.0,0.000262,2]
[321897577,1712592643686,-163.78,0.00026215,2]
[321897578,1712592643696,-150.0,0.00026221,4]
[321897579,1712592643706,-150.0,0.00026252,4]
[321897580,1712592643715,-150.0,0.00026276,4]
[321897581,1712592643728,-150.0,0.00026297,4]
[321897582,1712592643741,-150.0,0.00026331,4]
[321897583,1712592643752,-150.0,0.00026331,4]
[321897584,1712592643762,-200.0,0.00026335,2]
[321897585,1712592643774,-150.0,0.00026386,4]
[321897586,1712592643784,-150.0,0.00026432,4]
[321897587,1712592643793,-150.0,0.0002644,4]
[321897588,1712592643803,-200.0,0.00026453,2]
[321897589,1712592643814,-1000.0,0.00026453,2]
[321897590,1712592643824,-500.0,0.00026453,2]
[321897591,1712592643833,-150.0,0.00026495,4]
[321897592,1712592643843,-150.0,0.00026509,4]
[321897593,1712592643852,-150.0,0.00026548,2]
[321897594,1712592643864,-150.0,0.0002655,4]
[321897595,1712592643873,-150.0,0.00026568,4]
[321897596,1712592643882,-150.0,0.00026568,4]
[321897597,1712592643891,-2500.0,0.00026597,2]
[321897598,1712592643902,-763.6674198,0.00026598,2]
[321897599,1712592643912,-150.0,0.00026605,4]
[321897600,1712592643926,-169.1734385,0.0002663,2]
[321897601,1712592643936,-150.0,0.00026659,4]
[321897602,1712592643946,-500.0,0.00026662,2]
[321897603,1712592643957,-152.0,0.00026674,4]
[321897604,1712592643967,-1000.0,0.00026683,2]
[321897605,1712592643978,-150.0,0.00026687,4]
[321897606,1712592643988,-639.0851,0.00026697,2]
[321897607,1712592643998,-99624.7966,0.00026697,2]
[321897608,1712592644008,-320.76867755,0.00026698,2]
[321897609,1712592644018,-150.0,0.00026704,4]
[321897610,1712592644027,-150.0,0.00026714,4]
[321897611,1712592644038,-150.0,0.00026758,4]
[321897612,1712592644047,-210.0,0.0002676,2]
[321897613,1712592644057,-150.0,0.00026769,4]
[321897614,1712592644067,-286.58,0.00026787,2]
[321897615,1712592644077,-19240.47,0.00026796,2]
[321897616,1712592644087,-113794.90543883,0.00026797,2]
[321897617,1712592644110,-697.54165331,0.00026797,2]
[321897630,1712592645846,-792.38885907,0.00024767,2]
[321897631,1712592645858,-1016.87163042,0.00024767,2]
[321897634,1712592716364,48700.0,0.0002,30]
[321897643,1712592883040,20000.0,0.0003,30]
[321897648,1712593041184,407.48,0.00024329,15]
[321897649,1712593065620,151.0,0.00028946,30]
[321897654,1712593525190,999.50853186,4e-06,2]
[321897655,1712593555947,382.01,0.00024329,15]
[321897656,1712593720560,2597.15090099,0.0002802,19]
[321897704,1712593831716,-164.119243,0.00021645,2]
[321897705,1712593831725,-277.02,0.00021646,2]
[321897706,1712593831734,-250.0,0.00023434,2]
[321897707,1712593831743,-562.17,0.00023437,2]
[321897708,1712593831753,-1000.0,0.00023514,2]
[321897709,1712593831762,-220.06162524,0.0002354,2]
[321897710,1712593831781,-279.93837476,0.0002354,2]
[321897711,1712593831791,-250.0,0.00023544,2]
[321897712,1712593831800,-200.0,0.00023629,2]
[321897713,1712593831809,-1804.75,0.00023642,2]
[321897714,1712593831818,-171.75,0.00023799,2]
[321897715,1712593831827,-354.9,0.00023799,2]
[321897716,1712593831836,-499.99,0.00023799,2]
[321897717,1712593831845,-150.99,0.00023799,2]
[321897718,1712593831854,-3056.89,0.00023799,2]
[321897719,1712593831863,-150.0,0.000238,2]
[321897720,1712593831872,-277.02,0.0002391,2]
[321897721,1712593831883,-2239.87,0.0002391,2]
[321897722,1712593831892,-155.78441961,0.00024,2]
[321897723,1712593831901,-301.83234063,0.00024008,2]
[321897724,1712593831911,-236.45199303,0.00024035,2]
[321897725,1712593831920,-161.95655027,0.00024042,2]
[321897726,1712593831929,-153.80423254,0.00024043,2]
[321897727,1712593831938,-642.51948278,0.00024051,2]
[321897728,1712593831947,-165.4,0.00024061,2]
[321897729,1712593831956,-482.46885583,0.00024065,2]
[321897730,1712593831966,-642.51948278,0.00024068,2]
[321897731,1712593831975,-153.80423254,0.00024069,2]
[321897732,1712593831984,-123.61943558,0.00024074,2]
[321897733,1712593832000,-428.32056442,0.00024074,2]
[321897734,1712593832009,-143.69447365,0.00024174,2]
[321897735,1712593832021,-92.75751938,0.00024174,2]
[321897736,1712593832030,-156.73458951,0.0002419,2]
[321897737,1712593832039,-31.3464346,0.00024214,2]
[321897738,1712593832051,-611.17304818,0.00024214,2]
[321897739,1712593832060,-213.6395527,0.00024215,2]
[321897740,1712593832119,-581.61040426,0.00024215,2]
[321897741,1712593832129,-150.0,0.000243,2]
[321897742,1712593832140,-102.65835501,0.00024321,2]
[321897743,1712593832151,-200.87287789,0.00024321,2]
[321897744,1712593832162,-166.7821729,0.00024322,2]
[321897745,1712593832172,-544.38707429,0.00024354,2]
[321897746,1712593832181,-482.46885583,0.00024377,2]
[321897747,1712593832190,-150.5479434,0.00024378,2]
[321897748,1712593832200,-544.38707429,0.00024387,2]
[321897749,1712593832208,-171.75,0.0002442,2]
[321897750,1712593832217,-166.80797734,0.00024425,2]
[321897751,1712593832227,-153.80423254,0.00024448,2]
[321897752,1712593832236,-303.5312329,0.00024473,2]
[321897753,1712593832246,-642.51948278,0.00024474,2]
[321897754,1712593832256,-303.5312329,0.0002453,2]
[321897755,1712593832265,-544.38707429,0.00024534,2]
[321897756,1712593832274,-301.83234063,0.00024544,2]
[321897757,1712593832284,-523.45697299,0.00024546,2]
[321897758,1712593832293,-155.78441961,0.00024566,2]
[321897759,1712593832303,-858.71071401,0.00024634,2]
[321897760,1712593832313,-150.5479434,0.00024637,2]
[321897761,1712593832321,-20586.4179273,0.00024731,2]
[321897762,1712593832330,-535.92106845,0.00024731,2]
[321897763,1712593832339,-206.73986699,0.00024732,2]
[321897764,1712593832348,-59018.06241816,0.00024733,2]
[321897765,1712593832406,-493.64174045,0.00024733,2]
[321897767,1712593837796,-258.75158346,0.00024733,2]
[321897768,1712593837810,-12785.1355112,0.00024733,2]
[321897769,1712593838056,-10545.99952494,0.00024733,2]
[321897775,1712593839751,-917.16623103,0.00024733,2]
[321897776,1712593839838,-29962.20607277,0.00024733,2]
[321897777,1712593839848,-2749.64992724,0.00024734,2]
[321897778,1712593839910,-350.2695717,0.00024734,2]
[321897779,1712593839963,-546.29999974,0.00024734,2]
[321897844,1712593843308,-4157.25549001,0.00024734,2]
[321897869,1712593845868,-391.24280628,0.00024734,2]
[321897870,1712593845992,-251.24021753,0.00024734,2]
[321897871,1712593846001,-156.2657349,0.00024765,2]
[321897872,1712593846011,-2308.06704412,0.00024766,2]
[321897873,1712593846020,-150.0,0.000248,2]
[321897874,1712593846029,-482.46885583,0.00024808,2]
[321897875,1712593846038,-169.68037056,0.00024811,2]
[321897876,1712593846048,-152.33207564,0.00024836,2]
[321897877,1712593846057,-153.8105693,0.00024854,2]
[321897878,1712593846067,-156.2657349,0.00024935,2]
[321897879,1712593846080,-153.24506346,0.00024958,2]
[321897880,1712593846090,-283.55281271,0.00024988,2]
[321897881,1712593846099,-53051.5970275,0.00024989,2]
[321897882,1712593846235,-3727.39850152,0.00024989,2]
[321897884,1712594006656,9394.32487343,0.0003,30]
[321897885,1712594095434,358.13,0.00024329,15]
[321897886,1712594830839,335.74,0.00024329,15]
[321897937,1712595032062,-500.0,0.00020636,2]
[321897938,1712595032072,-407.47196267,0.00020636,2]
[321897939,1712595032082,-1000.0,0.00020636,2]
[321897940,1712595032092,-408.09213224,0.00020637,2]
[321897941,1712595032102,-4321.44042533,0.00020637,2]
[321897942,1712595032112,-193.93233813,0.00020638,2]
[321897943,1712595032122,-2462.68515412,0.00020638,2]
[321897944,1712595032131,-1296.33667789,0.00020639,2]
[321897945,1712595032141,-362.35522605,0.00020639,2]
[321897946,1712595032150,-1239.24531074,0.00020639,2]
[321897947,1712595032160,-3374.83061436,0.00020639,2]
[321897948,1712595032170,-3417.04663957,0.00020641,2]
[321897949,1712595032181,-3417.04663957,0.00020641,2]
[321897950,1712595032191,-184.42817352,0.00020641,2]
[321897951,1712595032214,-1097.64,0.00020641,2]
[321897952,1712595032226,-432.39441523,0.00020641,2]
[321897977,1712595038123,-1702.58405082,0.00020641,2]
[321897978,1712595038134,-3417.04663957,0.00020641,2]
[321897979,1712595038144,-3417.04663957,0.00020641,2]
[321897980,1712595038154,-3417.04663957,0.00020641,2]
[321897981,1712595038163,-199.7622544,0.00020643,2]
[321897982,1712595038173,-150.0,0.00020745,2]
[321897983,1712595038184,-150.0,0.00020745,2]
[321897984,1712595038194,-155.0,0.00020746,2]
[321897985,1712595038203,-431.88799992,0.00020871,2]
[321897986,1712595038212,-3061.74184067,0.00020998,2]
[321897987,1712595038258,-10551.26441493,0.00020998,2]
[321897988,1712595038267,-499.99,0.00020998,2]
[321897989,1712595038277,-550.0,0.00021,3]
[321897990,1712595038286,-150.99,0.00021,2]
[321897991,1712595038295,-289.59,0.00021195,2]
[321897992,1712595038305,-800.0,0.00022941,2]
[321897993,1712595038314,-1202.15,0.00022981,2]
[321897994,1712595038324,-281.08,0.00022985,2]
[321897995,1712595038334,-600.0,0.00023,3]
[321897996,1712595038344,-250.0,0.0002301,2]
[321897997,1712595038353,-152.33207564,0.00023053,2]
[321897998,1712595038363,-165.74,0.00023068,2]
[321897999,1712595038373,-166.66666666,0.00023079,2]
[321898000,1712595038382,-153.8105693,0.0002311,2]
[321898001,1712595038392,-768.74162506,0.00023114,2]
[321898002,1712595038401,-220.68852683,0.00023143,2]
[321898003,1712595038411,-768.74162506,0.00023236,2]
[321898004,1712595038420,-4528.11,0.00023299,2]
[321898005,1712595038433,-155.4,0.00023313,2]
[321898006,1712595038442,-506.00840723,0.00023322,2]
[321898007,1712595038451,-434.22197025,0.00023354,2]
[321898008,1712595038460,-434.22197025,0.00023362,2]
[321898009,1712595038470,-152.33207564,0.00023369,2]
[321898010,1712595038479,-556.85021841,0.00023373,2]
[321898011,1712595038489,-330.81367237,0.00023375,2]
[321898012,1712595038516,-103.40829788,0.00023375,2]
[321898013,1712595038525,-200.0,0.00023414,2]
[321898014,1712595038534,-273.17810961,0.00023433,2]
[321898015,1712595038544,-155.0000122,0.00023433,2]
[321898016,1712595038553,-289.59,0.00023459,2]
[321898017,1712595038563,-155.4,0.00023486,2]
[321898018,1712595038573,-4327.29294429,0.00023532,2]
[321898019,1712595038585,-556.85021841,0.00023552,2]
[321898020,1712595038594,-155.4,0.0002366,2]
[321898021,1712595038603,-273.17810961,0.0002371,2]
[321898022,1712595038613,-273.17810961,0.00023728,2]
[321898023,1712595038623,-489.94836686,0.0002374,2]
[321898024,1712595038632,-150.5479434,0.00023762,2]
[321898025,1712595038642,-153.95303214,0.00023777,2]
[321898026,1712595038651,-273.17810961,0.00023807,2]
[321898027,1712595038661,-155.4,0.00023833,2]
[321898028,1712595038670,-155.0000122,0.00023861,2]
[321898029,1712595038680,-153.8105693,0.0002387,2]
[321898030,1712595038689,-273.17810961,0.00023871,2]
[321898031,1712595038700,-152.33207564,0.0002396,2]
[321898032,1712595038710,-176.49461477,0.00023968,2]
[321898033,1712595038721,-1577.81853485,0.00023984,2]
[321898034,1712595038731,-155.4,0.00024007,2]
[321898035,1712595038741,-489.94836686,0.00024021,2]
[321898036,1712595038750,-281.71018459,0.00024088,2]
[321898037,1712595038759,-434.22197025,0.00024102,2]
[321898038,1712595038768,-768.74162506,0.00024128,2]
[321898039,1712595038778,-489.94836686,0.00024148,2]
[321898040,1712595038787,-207.40765131,0.00024155,2]
[321898041,1712595038802,-65.7704583,0.00024155,2]
[321898042,1712595038811,-155.4,0.0002418,2]
[321898043,1712595038821,-150.5479434,0.00024183,2]
[321898044,1712595038830,-150.5479434,0.00024185,2]
[321898045,1712595038840,-434.22197025,0.00024244,2]
[321898046,1712595038849,-155.78441961,0.00024297,2]
[321898047,1712595038858,-150.5479434,0.00024307,2]
[321898048,1712595038867,-152.33207564,0.00024315,2]
[321898049,1712595038876,-152.33207564,0.00024323,2]
[321898050,1712595038885,-2208.16129134,0.00024329,2]
[321898051,1712595038894,-326.56857755,0.00024329,2]
[321898052,1712595038903,-150.5479434,0.00024343,2]
[321898053,1712595038913,-556.85021841,0.00024352,2]
[321898055,1712595038922,-155.4,0.00024354,2]
[321898057,1712595038932,-489.94836686,0.00024372,2]
[321898059,1712595038942,-768.74162506,0.00024475,2]
[321898061,1712595038951,-206.98303536,0.0002451,2]
[321898063,1712595038960,-206.98303536,0.00024523,2]
[321898065,1712595038970,-155.4,0.00024527,2]
[321898067,1712595038979,-150.5479434,0.00024534,2]
[321898069,1712595038988,-156.2657349,0.00024535,2]
[321898071,1712595038997,-206.98303536,0.00024539,2]
[321898073,1712595039006,-206.98303536,0.00024539,2]
[321898075,1712595039015,-206.98303536,0.00024541,2]
[321898076,1712595039024,-206.98303536,0.00024547,2]
[321898085,1712595039296,-434.22197025,0.00024549,2]
[321898086,1712595039308,-162.74534145,0.00024554,2]
[321898088,1712595039318,-206.98303536,0.00024557,2]
[321898089,1712595039328,-206.98303536,0.00024569,2]
[321898090,1712595039338,-556.85021841,0.00024585,2]
[321898091,1712595039347,-206.98303536,0.0002459,2]
[321898092,1712595039356,-153.80423254,0.00024653,2]
[321898093,1712595039365,-273.17810961,0.00024664,2]
[321898094,1712595039375,-11966.5585,0.00024666,2]
[321898095,1712595039384,-460.54,0.00024696,2]
[321898096,1712595039393,-5912.09324186,0.000247,2]
[321898097,1712595039406,-5168.0,0.000247,2]
[321898149,1712595040083,-257.92927957,0.000247,2]
[321898150,1712595040096,-608.54,0.000247,2]
[321898151,1712595040194,-2357.43747857,0.000247,2]
[321898152,1712595040203,-506.00840723,0.00024703,2]
[321898153,1712595040213,-152.0,0.00024708,3]
[321898154,1712595040223,-220.68852683,0.00024709,2]
[321898155,1712595040232,-1341.24721798,0.00024737,2]
[321898156,1712595040242,-155.0,0.00024737,2]
[321898157,1712595040253,-281.71018459,0.00024745,2]
[321898158,1712595040262,-156.2657349,0.00024765,2]
[321898159,1712595040272,-156.2657349,0.00024775,2]
[321898160,1712595040281,-300.7984,0.00024797,2]
[321898161,1712595040290,-842.0277,0.00024797,2]
[321898162,1712595040300,-772.8396426,0.00024797,2]
[321898163,1712595040309,-506.00840723,0.00024798,2]
[321898164,1712595040319,-273.17810961,0.00024819,2]
[321898165,1712595040328,-506.00840723,0.00024825,2]
[321898166,1712595040337,-434.22197025,0.00024828,2]
[321898167,1712595040347,-153.24506346,0.0002483,2]
[321898168,1712595040356,-434.22197025,0.00024847,2]
[321898170,1712595040365,-768.74162506,0.0002485,2]
[321898171,1712595040375,-320.76867754,0.00024896,2]
[321898172,1712595040387,-500.0,0.00024897,2]
[321898173,1712595040397,-60846.84299097,0.00024897,2]
[321898174,1712595040409,-1078.375,0.00024897,2]
[321898176,1712595040421,-68582.33490903,0.00024897,2]
[321898178,1712595040437,-163.39883742,0.00024915,2]
[321898179,1712595040445,-164.74,0.00024921,2]
[321898180,1712595040455,-820.49,0.00024921,2]
[321898181,1712595040464,-906.33,0.00024921,2]
[321898182,1712595040474,-411.4,0.00024921,2]
[321898183,1712595040483,-994.73,0.00024921,2]